[Event "Titled Tuesday Blitz December 20 Late 2022"]
[White "Souleidis, Georgios"]
[Black "Leitao, Rafael"]
[WhiteFideId "4206827"]
[BlackFideId "2101246"]
[WhiteElo "2401"]
[BlackElo "2609"]
[Result "1/2-1/2"]
[Round "09"]
[TimeControl "180+1"]
[Date "2022.12.20"]
[WhiteClock "0:00:07"]
[BlackClock "0:00:05"]

1. e4 {[%clk 0:02:55]}  c5 {[%clk 0:02:48]} 2. Be2 {[%clk 0:02:54]}  Nc6 {[%clk 0:02:48]} 3. d3 {[%clk 0:02:54]}  g6 {[%clk 0:02:48]} 4. f4 {[%clk 0:02:54]}  Bg7 {[%clk 0:02:48]} 5. Nf3 {[%clk 0:02:55]}  d6 {[%clk 0:02:49]} 6. O-O {[%clk 0:02:55]}  Nf6 {[%clk 0:02:49]} 7. c3 {[%clk 0:02:56]}  O-O {[%clk 0:02:50]} 8. Kh1 {[%clk 0:02:56]}  e6 {[%clk 0:02:42]} 9. Be3 {[%clk 0:02:55]}  Rb8 {[%clk 0:02:40]} 10. Nbd2 {[%clk 0:02:54]}  b5 {[%clk 0:02:40]} 11. a3 {[%clk 0:02:54]}  Qe7 {[%clk 0:02:22]} 12. d4 {[%clk 0:02:48]}  Rd8 {[%clk 0:02:18]} 13. Bd3 {[%clk 0:02:44]}  a6 {[%clk 0:01:51]} 14. Qe2 {[%clk 0:02:41]}  Bb7 {[%clk 0:01:51]} 15. a4 {[%clk 0:02:17]}  cxd4 {[%clk 0:01:49]} 16. Nxd4 {[%clk 0:02:07]}  e5 {[%clk 0:01:37]} 17. Nxc6 {[%clk 0:02:00]}  Bxc6 {[%clk 0:01:38]} 18. axb5 {[%clk 0:01:59]}  axb5 {[%clk 0:01:36]} 19. fxe5 {[%clk 0:01:50]}  dxe5 {[%clk 0:01:32]} 20. Bg5 {[%clk 0:01:24]}  h6 {[%clk 0:01:28]} 21. Be3 {[%clk 0:00:46]}  b4 {[%clk 0:01:03]} 22. Bc4 {[%clk 0:00:20]}  bxc3 {[%clk 0:01:00]} 23. bxc3 {[%clk 0:00:21]}  Rd7 {[%clk 0:00:52]} 24. Ra2 {[%clk 0:00:13]}  Kh7 {[%clk 0:00:49]} 25. Qf3 {[%clk 0:00:13]}  Rbd8 {[%clk 0:00:46]} 26. h3 {[%clk 0:00:11]}  Bb7 {[%clk 0:00:40]} 27. Rf2 {[%clk 0:00:09]}  Rc8 {[%clk 0:00:40]} 28. Bb5 {[%clk 0:00:09]}  Rxd2 {[%clk 0:00:30]} 29. Bxd2 {[%clk 0:00:08]}  Nxe4 {[%clk 0:00:29]} 30. Qxf7 {[%clk 0:00:05]}  Nxf2+ {[%clk 0:00:21]} 31. Qxf2 {[%clk 0:00:06]}  e4 {[%clk 0:00:16]} 32. c4 {[%clk 0:00:05]}  Rf8 {[%clk 0:00:16]} 33. Qe1 {[%clk 0:00:04]}  Bd4 {[%clk 0:00:14]} 34. Be3 {[%clk 0:00:04]}  Qc5 {[%clk 0:00:14]} 35. Bxd4 {[%clk 0:00:04]}  Qxd4 {[%clk 0:00:15]} 36. Re2 {[%clk 0:00:04]}  Qe5 {[%clk 0:00:12]} 37. Re3 {[%clk 0:00:02]}  Rf7 {[%clk 0:00:11]} 38. Re2 {[%clk 0:00:03]}  h5 {[%clk 0:00:10]} 39. Re3 {[%clk 0:00:03]}  Kg7 {[%clk 0:00:09]} 40. Re2 {[%clk 0:00:04]}  Rf4 {[%clk 0:00:08]} 41. Re3 {[%clk 0:00:04]}  Qf6 {[%clk 0:00:09]} 42. Kg1 {[%clk 0:00:03]}  h4 {[%clk 0:00:09]} 43. c5 {[%clk 0:00:03]}  Kh7 {[%clk 0:00:08]} 44. Qc1 {[%clk 0:00:03]}  Bc6 {[%clk 0:00:03]} 45. Bxc6 {[%clk 0:00:03]}  Qxc6 {[%clk 0:00:03]} 46. Re1 {[%clk 0:00:04]}  Rf5 {[%clk 0:00:01]} 47. Qe3 {[%clk 0:00:03]}  Qxc5 {[%clk 0:00:01]} 48. Qxc5 {[%clk 0:00:04]}  Rxc5 {[%clk 0:00:02]} 49. Rxe4 {[%clk 0:00:04]}  g5 {[%clk 0:00:02]} 50. Kh2 {[%clk 0:00:05]}  Kg6 {[%clk 0:00:03]} 51. Rg4 {[%clk 0:00:05]}  Rf5 {[%clk 0:00:02]} 52. Rd4 {[%clk 0:00:05]}  Re5 {[%clk 0:00:03]} 53. Rc4 {[%clk 0:00:06]}  Rf5 {[%clk 0:00:03]} 54. Rb4 {[%clk 0:00:05]}  Re5 {[%clk 0:00:03]} 55. Rc4 {[%clk 0:00:06]}  Rf5 {[%clk 0:00:04]} 56. Rb4 {[%clk 0:00:06]}  Re5 {[%clk 0:00:05]} 57. Rc4 {[%clk 0:00:07]} 1/2-1/2


[Site "https://www.chess.com"]

[Event "Titled Tuesday Blitz December 20 Late 2022"]
[White "Tanenbaum, Zachary"]
[Black "Omelja, Artem"]
[WhiteFideId "2060850"]
[BlackFideId "14119846"]
[WhiteElo "2761"]
[BlackElo "2543"]
[Result "0-1"]
[Round "09"]
[TimeControl "180+1"]
[Date "2022.12.21"]
[WhiteClock "0:00:05"]
[BlackClock "0:00:12"]

1. e4 {[%clk 0:03:00]}  c5 {[%clk 0:02:55]} 2. Nf3 {[%clk 0:03:01]}  Nc6 {[%clk 0:02:54]} 3. Nc3 {[%clk 0:03:01]}  e5 {[%clk 0:02:52]} 4. Bc4 {[%clk 0:03:01]}  d6 {[%clk 0:02:51]} 5. d3 {[%clk 0:03:01]}  Be7 {[%clk 0:02:49]} 6. Nd2 {[%clk 0:03:02]}  Nf6 {[%clk 0:02:45]} 7. Nf1 {[%clk 0:03:02]}  O-O {[%clk 0:02:45]} 8. Ne3 {[%clk 0:03:03]}  Nd4 {[%clk 0:02:42]} 9. Ned5 {[%clk 0:03:00]}  Nxd5 {[%clk 0:02:40]} 10. Nxd5 {[%clk 0:02:41]}  b5 {[%clk 0:02:38]} 11. Bb3 {[%clk 0:02:41]}  Bb7 {[%clk 0:02:33]} 12. c3 {[%clk 0:02:34]}  Nxb3 {[%clk 0:02:13]} 13. Qxb3 {[%clk 0:02:35]}  Bxd5 {[%clk 0:02:14]} 14. Qxd5 {[%clk 0:02:34]}  Qc8 {[%clk 0:02:15]} 15. O-O {[%clk 0:02:31]}  Qe6 {[%clk 0:02:14]} 16. Qxe6 {[%clk 0:02:06]}  fxe6 {[%clk 0:02:14]} 17. f4 {[%clk 0:02:07]}  exf4 {[%clk 0:02:13]} 18. Bxf4 {[%clk 0:02:07]}  e5 {[%clk 0:02:11]} 19. Be3 {[%clk 0:02:07]}  Rxf1+ {[%clk 0:02:10]} 20. Rxf1 {[%clk 0:02:07]}  Rf8 {[%clk 0:02:10]} 21. Rxf8+ {[%clk 0:01:54]}  Kxf8 {[%clk 0:02:10]} 22. Kf2 {[%clk 0:01:54]}  Kf7 {[%clk 0:02:10]} 23. d4 {[%clk 0:01:46]}  exd4 {[%clk 0:01:55]} 24. cxd4 {[%clk 0:01:47]}  cxd4 {[%clk 0:01:56]} 25. Bxd4 {[%clk 0:01:47]}  Bf6 {[%clk 0:01:56]} 26. Ke3 {[%clk 0:01:19]}  Ke6 {[%clk 0:01:54]} 27. b3 {[%clk 0:00:58]}  a6 {[%clk 0:01:53]} 28. Kd3 {[%clk 0:00:58]}  Be5 {[%clk 0:01:47]} 29. h3 {[%clk 0:00:56]}  h5 {[%clk 0:01:39]} 30. Ke3 {[%clk 0:00:55]}  g5 {[%clk 0:01:37]} 31. Kd3 {[%clk 0:00:48]}  g4 {[%clk 0:01:34]} 32. hxg4 {[%clk 0:00:41]}  hxg4 {[%clk 0:01:35]} 33. Ke3 {[%clk 0:00:06]}  Bg3 {[%clk 0:01:34]} 34. Kd3 {[%clk 0:00:06]}  Bh2 {[%clk 0:01:30]} 35. Bc3 {[%clk 0:00:04]}  d5 {[%clk 0:01:18]} 36. Ke3 {[%clk 0:00:03]}  Bg3 {[%clk 0:01:07]} 37. a3 {[%clk 0:00:03]}  Bd6 {[%clk 0:01:03]} 38. a4 {[%clk 0:00:03]}  bxa4 {[%clk 0:01:02]} 39. bxa4 {[%clk 0:00:04]}  Bc7 {[%clk 0:00:56]} 40. Bh8 {[%clk 0:00:04]}  Kd6 {[%clk 0:00:26]} 41. Kf4 {[%clk 0:00:03]}  dxe4 {[%clk 0:00:26]} 42. Kxe4 {[%clk 0:00:03]}  Kc5 {[%clk 0:00:25]} 43. Bc3 {[%clk 0:00:03]}  Kc4 {[%clk 0:00:25]} 44. Be1 {[%clk 0:00:03]}  Kb3 {[%clk 0:00:25]} 45. a5 {[%clk 0:00:04]}  Ka4 {[%clk 0:00:24]} 46. Kf5 {[%clk 0:00:04]}  Bxa5 {[%clk 0:00:10]} 47. Bg3 {[%clk 0:00:04]}  Kb3 {[%clk 0:00:10]} 48. Kxg4 {[%clk 0:00:04]}  Bb4 {[%clk 0:00:08]} 49. Kf3 {[%clk 0:00:04]}  a5 {[%clk 0:00:08]} 50. Ke2 {[%clk 0:00:04]}  Bc3 {[%clk 0:00:08]} 51. Kd3 {[%clk 0:00:04]}  a4 {[%clk 0:00:08]} 52. Bd6 {[%clk 0:00:03]}  Bb4 {[%clk 0:00:08]} 53. Be5 {[%clk 0:00:04]}  a3 {[%clk 0:00:08]} 54. g4 {[%clk 0:00:04]}  Be7 {[%clk 0:00:08]} 55. Ke4 {[%clk 0:00:04]}  Bg5 {[%clk 0:00:08]} 56. Kf5 {[%clk 0:00:04]}  Bc1 {[%clk 0:00:08]} 57. g5 {[%clk 0:00:04]}  Bb2 {[%clk 0:00:09]} 58. g6 {[%clk 0:00:03]}  Bxe5 {[%clk 0:00:09]} 59. Kxe5 {[%clk 0:00:04]}  a2 {[%clk 0:00:09]} 60. g7 {[%clk 0:00:05]}  a1=Q+ {[%clk 0:00:10]} 61. Ke6 {[%clk 0:00:04]}  Qa6+ {[%clk 0:00:10]} 62. Kd5 {[%clk 0:00:05]}  Qg6 {[%clk 0:00:09]} 63. Ke5 {[%clk 0:00:05]}  Qxg7+ {[%clk 0:00:09]} 64. Ke6 {[%clk 0:00:05]}  Kc4 {[%clk 0:00:08]} 65. Kd6 {[%clk 0:00:04]}  Qd4+ {[%clk 0:00:09]} 66. Kc6 {[%clk 0:00:04]}  Qd5+ {[%clk 0:00:10]} 67. Kc7 {[%clk 0:00:05]}  Kc5 {[%clk 0:00:11]} 68. Kb8 {[%clk 0:00:04]}  Qd7 {[%clk 0:00:11]} 69. Ka8 {[%clk 0:00:05]}  Kc6 {[%clk 0:00:12]} 70. Kb8 {[%clk 0:00:05]}  Qb7# {[%clk 0:00:12]} 0-1


[Site "https://www.chess.com"]

[Event "Titled Tuesday Blitz December 20 Late 2022"]
[White "Tarnowska, Aleksandra"]
[Black "Kalajzic, Ivan"]
[WhiteFideId "1180967"]
[BlackFideId "14506378"]
[WhiteElo "1776"]
[BlackElo "2163"]
[Result "0-1"]
[Round "09"]
[TimeControl "180+1"]
[Date "2022.12.21"]
[WhiteClock "0:00:02"]
[BlackClock "0:00:42"]

1. e4 {[%clk 0:03:00]}  c6 {[%clk 0:02:50]} 2. d4 {[%clk 0:02:59]}  d5 {[%clk 0:02:50]} 3. Nc3 {[%clk 0:03:00]}  b5 {[%clk 0:02:49]} 4. exd5 {[%clk 0:02:59]}  b4 {[%clk 0:02:50]} 5. Ne4 {[%clk 0:02:44]}  cxd5 {[%clk 0:02:49]} 6. Ng3 {[%clk 0:02:43]}  Nf6 {[%clk 0:02:49]} 7. Nf3 {[%clk 0:02:43]}  Bg4 {[%clk 0:02:49]} 8. Bb5+ {[%clk 0:02:42]}  Nbd7 {[%clk 0:02:48]} 9. h3 {[%clk 0:02:34]}  Bxf3 {[%clk 0:02:48]} 10. Qxf3 {[%clk 0:02:34]}  e6 {[%clk 0:02:48]} 11. Bg5 {[%clk 0:02:28]}  Be7 {[%clk 0:02:48]} 12. O-O {[%clk 0:02:14]}  O-O {[%clk 0:02:47]} 13. Rfe1 {[%clk 0:01:52]}  Rc8 {[%clk 0:02:41]} 14. Bd3 {[%clk 0:01:51]}  g6 {[%clk 0:02:26]} 15. h4 {[%clk 0:01:35]}  h5 {[%clk 0:02:18]} 16. Ne2 {[%clk 0:01:00]}  Ng4 {[%clk 0:02:14]} 17. Bxe7 {[%clk 0:00:58]}  Qxe7 {[%clk 0:02:15]} 18. Nf4 {[%clk 0:00:56]}  Qxh4 {[%clk 0:02:13]} 19. Nh3 {[%clk 0:00:36]}  Qf6 {[%clk 0:02:02]} 20. Qxf6 {[%clk 0:00:31]}  Ngxf6 {[%clk 0:01:57]} 21. a3 {[%clk 0:00:31]}  a5 {[%clk 0:01:52]} 22. axb4 {[%clk 0:00:31]}  axb4 {[%clk 0:01:53]} 23. Ng5 {[%clk 0:00:31]}  Ra8 {[%clk 0:01:50]} 24. f3 {[%clk 0:00:29]}  Rfc8 {[%clk 0:01:47]} 25. Kf2 {[%clk 0:00:28]}  Kf8 {[%clk 0:01:47]} 26. Rec1 {[%clk 0:00:20]}  Ke7 {[%clk 0:01:46]} 27. Nh3 {[%clk 0:00:18]}  Nb6 {[%clk 0:01:43]} 28. Nf4 {[%clk 0:00:18]}  Nfd7 {[%clk 0:01:41]} 29. Re1 {[%clk 0:00:18]}  Kd6 {[%clk 0:01:41]} 30. Rxa8 {[%clk 0:00:14]}  Rxa8 {[%clk 0:01:40]} 31. b3 {[%clk 0:00:11]}  Nf8 {[%clk 0:01:31]} 32. Nh3 {[%clk 0:00:11]}  Ra7 {[%clk 0:01:28]} 33. Ng5 {[%clk 0:00:10]}  f6 {[%clk 0:01:27]} 34. Nh3 {[%clk 0:00:10]}  g5 {[%clk 0:01:25]} 35. f4 {[%clk 0:00:09]}  g4 {[%clk 0:01:22]} 36. Ng1 {[%clk 0:00:09]}  f5 {[%clk 0:01:22]} 37. Ne2 {[%clk 0:00:09]}  h4 {[%clk 0:01:21]} 38. Rh1 {[%clk 0:00:08]}  Rh7 {[%clk 0:01:21]} 39. Bb5 {[%clk 0:00:07]}  Nbd7 {[%clk 0:01:18]} 40. Nc1 {[%clk 0:00:08]}  Nf6 {[%clk 0:01:17]} 41. Bd3 {[%clk 0:00:07]}  Ne4+ {[%clk 0:01:17]} 42. Bxe4 {[%clk 0:00:07]}  dxe4 {[%clk 0:01:16]} 43. Ke2 {[%clk 0:00:07]}  Ng6 {[%clk 0:01:11]} 44. Ke3 {[%clk 0:00:07]}  h3 {[%clk 0:01:09]} 45. gxh3 {[%clk 0:00:07]}  gxh3 {[%clk 0:01:09]} 46. Na2 {[%clk 0:00:07]}  Nh4 {[%clk 0:01:04]} 47. Nxb4 {[%clk 0:00:07]}  Ng2+ {[%clk 0:01:04]} 48. Kf2 {[%clk 0:00:07]}  Nxf4 {[%clk 0:01:04]} 49. c4 {[%clk 0:00:06]}  Rg7 {[%clk 0:00:57]} 50. c5+ {[%clk 0:00:06]}  Kd7 {[%clk 0:00:54]} 51. Na6 {[%clk 0:00:05]}  Rg2+ {[%clk 0:00:53]} 52. Kf1 {[%clk 0:00:06]}  Rc2 {[%clk 0:00:50]} 53. b4 {[%clk 0:00:04]}  e3 {[%clk 0:00:48]} 54. b5 {[%clk 0:00:02]}  e2+ {[%clk 0:00:48]} 55. Kf2 {[%clk 0:00:01]}  Nd3+ {[%clk 0:00:48]} 56. Ke3 {[%clk 0:00:01]}  e1=Q+ {[%clk 0:00:47]} 57. Rxe1 {[%clk 0:00:01]}  Nxe1 {[%clk 0:00:48]} 58. c6+ {[%clk 0:00:02]}  Kd6 {[%clk 0:00:46]} 59. Nc5 {[%clk 0:00:01]}  h2 {[%clk 0:00:43]} 60. c7 {[%clk 0:00:02]}  Kxc7 {[%clk 0:00:42]} 0-1


[Site "https://www.chess.com"]

[Event "Titled Tuesday Blitz December 20 Late 2022"]
[White "Tatarinov, Dmitry"]
[Black "Denishev, Marat"]
[WhiteFideId "24160067"]
[BlackFideId "24131563"]
[WhiteElo "2326"]
[BlackElo "2194"]
[Result "1-0"]
[Round "09"]
[TimeControl "180+1"]
[Date "2022.12.20"]
[WhiteClock "0:01:02"]
[BlackClock "0:00:46"]

1. d4 {[%clk 0:03:00]}  Nf6 {[%clk 0:02:53]} 2. c4 {[%clk 0:03:01]}  c5 {[%clk 0:02:50]} 3. e3 {[%clk 0:02:58]}  g6 {[%clk 0:02:45]} 4. Nf3 {[%clk 0:02:57]}  Bg7 {[%clk 0:02:46]} 5. Nc3 {[%clk 0:02:58]}  O-O {[%clk 0:02:46]} 6. d5 {[%clk 0:02:56]}  d6 {[%clk 0:02:45]} 7. h3 {[%clk 0:02:56]}  a6 {[%clk 0:02:45]} 8. a4 {[%clk 0:02:56]}  a5 {[%clk 0:02:43]} 9. Bd3 {[%clk 0:02:53]}  Na6 {[%clk 0:02:43]} 10. O-O {[%clk 0:02:54]}  Nb4 {[%clk 0:02:42]} 11. e4 {[%clk 0:02:55]}  e5 {[%clk 0:02:41]} 12. dxe6 {[%clk 0:02:53]}  Bxe6 {[%clk 0:02:41]} 13. Bg5 {[%clk 0:02:52]}  h6 {[%clk 0:02:39]} 14. Bh4 {[%clk 0:02:52]}  g5 {[%clk 0:02:37]} 15. Bg3 {[%clk 0:02:51]}  Qb6 {[%clk 0:02:29]} 16. Nd5 {[%clk 0:02:43]}  Bxd5 {[%clk 0:02:19]} 17. cxd5 {[%clk 0:02:30]}  Nh5 {[%clk 0:02:06]} 18. Bh2 {[%clk 0:02:28]}  Nf4 {[%clk 0:01:54]} 19. Bb5 {[%clk 0:02:27]}  Ng6 {[%clk 0:01:48]} 20. Nd2 {[%clk 0:02:11]}  Qd8 {[%clk 0:01:35]} 21. Nc4 {[%clk 0:02:08]}  Ne5 {[%clk 0:01:25]} 22. Nxe5 {[%clk 0:02:04]}  Bxe5 {[%clk 0:01:26]} 23. Bxe5 {[%clk 0:02:02]}  dxe5 {[%clk 0:01:27]} 24. Qh5 {[%clk 0:01:55]}  Qf6 {[%clk 0:01:25]} 25. Rac1 {[%clk 0:01:53]}  b6 {[%clk 0:01:25]} 26. Rc3 {[%clk 0:01:54]}  Qg6 {[%clk 0:01:17]} 27. Qg4 {[%clk 0:01:51]}  Rad8 {[%clk 0:01:15]} 28. Rd1 {[%clk 0:01:39]}  Kg7 {[%clk 0:01:13]} 29. Qe2 {[%clk 0:01:33]}  Rd6 {[%clk 0:01:10]} 30. Rg3 {[%clk 0:01:24]}  Rfd8 {[%clk 0:01:06]} 31. h4 {[%clk 0:01:24]}  f6 {[%clk 0:01:03]} 32. h5 {[%clk 0:01:19]}  Qf7 {[%clk 0:00:58]} 33. Rf3 {[%clk 0:01:05]}  Qxh5 {[%clk 0:00:53]} 34. g3 {[%clk 0:01:05]}  Nc2 {[%clk 0:00:47]} 35. Qxc2 {[%clk 0:01:01]}  Qxf3 {[%clk 0:00:46]} 36. Be2 {[%clk 0:01:02]} 1-0


[Site "https://www.chess.com"]

[Event "Titled Tuesday Blitz December 20 Late 2022"]
[White "Ter-Sahakyan, Samvel"]
[Black "Rorrer, Grayson"]
[WhiteFideId "13302531"]
[BlackFideId "30944996"]
[WhiteElo "2585"]
[BlackElo "2200"]
[Result "0-1"]
[Round "09"]
[TimeControl "180+1"]
[Date "2022.12.20"]
[WhiteClock "0:00:02"]
[BlackClock "0:00:05"]

1. d4 {[%clk 0:02:58]}  Nf6 {[%clk 0:02:59]} 2. c4 {[%clk 0:02:58]}  g6 {[%clk 0:02:56]} 3. Nc3 {[%clk 0:02:57]}  d5 {[%clk 0:02:56]} 4. cxd5 {[%clk 0:02:56]}  Nxd5 {[%clk 0:02:57]} 5. Bd2 {[%clk 0:02:57]}  Bg7 {[%clk 0:02:56]} 6. e4 {[%clk 0:02:57]}  Nxc3 {[%clk 0:02:56]} 7. Bxc3 {[%clk 0:02:58]}  O-O {[%clk 0:02:57]} 8. Qd2 {[%clk 0:02:58]}  Nc6 {[%clk 0:02:56]} 9. d5 {[%clk 0:02:48]}  Ne5 {[%clk 0:02:55]} 10. f4 {[%clk 0:02:45]}  Ng4 {[%clk 0:02:53]} 11. Nf3 {[%clk 0:02:41]}  c6 {[%clk 0:02:44]} 12. Bxg7 {[%clk 0:01:58]}  Kxg7 {[%clk 0:02:45]} 13. dxc6 {[%clk 0:01:58]}  bxc6 {[%clk 0:02:32]} 14. O-O-O {[%clk 0:01:47]}  Qb6 {[%clk 0:02:17]} 15. Qd4+ {[%clk 0:01:20]}  e5 {[%clk 0:02:03]} 16. Nxe5 {[%clk 0:00:55]}  Nf2 {[%clk 0:01:58]} 17. Qc3 {[%clk 0:00:27]}  Nxd1 {[%clk 0:01:44]} 18. Kxd1 {[%clk 0:00:27]}  f6 {[%clk 0:01:41]} 19. Nf3 {[%clk 0:00:25]}  Bg4 {[%clk 0:01:20]} 20. Kc1 {[%clk 0:00:24]}  Rad8 {[%clk 0:01:17]} 21. Bc4 {[%clk 0:00:18]}  Qf2 {[%clk 0:01:10]} 22. e5 {[%clk 0:00:09]}  Qxg2 {[%clk 0:00:58]} 23. Rf1 {[%clk 0:00:09]}  Bxf3 {[%clk 0:00:58]} 24. Rxf3 {[%clk 0:00:09]}  Qg1+ {[%clk 0:00:54]} 25. Rf1 {[%clk 0:00:09]}  Qd4 {[%clk 0:00:54]} 26. e6 {[%clk 0:00:09]}  Rfe8 {[%clk 0:00:29]} 27. f5 {[%clk 0:00:09]}  g5 {[%clk 0:00:16]} 28. Qxd4 {[%clk 0:00:05]}  Rxd4 {[%clk 0:00:17]} 29. b3 {[%clk 0:00:06]}  h5 {[%clk 0:00:13]} 30. Kc2 {[%clk 0:00:05]}  Kf8 {[%clk 0:00:09]} 31. Kc3 {[%clk 0:00:04]}  Red8 {[%clk 0:00:10]} 32. Re1 {[%clk 0:00:04]}  Ke7 {[%clk 0:00:10]} 33. Re2 {[%clk 0:00:04]}  Rd1 {[%clk 0:00:10]} 34. a4 {[%clk 0:00:02]}  a5 {[%clk 0:00:09]} 35. b4 {[%clk 0:00:01]}  Rc1+ {[%clk 0:00:08]} 36. Kb3 {[%clk 0:00:02]}  Rd4 {[%clk 0:00:05]} 0-1


[Site "https://www.chess.com"]

[Event "Titled Tuesday Blitz December 20 Late 2022"]
[White "Toncheva, Nadya"]
[Black "Gatterer, Florian"]
[WhiteFideId "2924056"]
[BlackFideId "811688"]
[WhiteElo "2101"]
[BlackElo "2218"]
[Result "1/2-1/2"]
[Round "09"]
[TimeControl "180+1"]
[Date "2022.12.21"]
[WhiteClock "0:00:34"]
[BlackClock "0:00:57"]

1. d4 {[%clk 0:03:00]}  Nf6 {[%clk 0:02:58]} 2. c4 {[%clk 0:03:01]}  e6 {[%clk 0:02:58]} 3. Nc3 {[%clk 0:03:01]}  d5 {[%clk 0:02:56]} 4. cxd5 {[%clk 0:03:01]}  Nxd5 {[%clk 0:02:56]} 5. Bd2 {[%clk 0:03:00]}  c5 {[%clk 0:02:51]} 6. e3 {[%clk 0:02:51]}  cxd4 {[%clk 0:02:48]} 7. exd4 {[%clk 0:02:51]}  Nc6 {[%clk 0:02:48]} 8. Nf3 {[%clk 0:02:51]}  Be7 {[%clk 0:02:41]} 9. a3 {[%clk 0:02:50]}  b6 {[%clk 0:02:37]} 10. Bd3 {[%clk 0:02:50]}  Bb7 {[%clk 0:02:35]} 11. O-O {[%clk 0:02:43]}  Bf6 {[%clk 0:02:34]} 12. Rc1 {[%clk 0:02:32]}  O-O {[%clk 0:02:26]} 13. Qe2 {[%clk 0:02:27]}  g6 {[%clk 0:02:15]} 14. Bh6 {[%clk 0:02:18]}  Re8 {[%clk 0:02:13]} 15. Rfd1 {[%clk 0:02:12]}  Nxd4 {[%clk 0:02:04]} 16. Nxd4 {[%clk 0:02:01]}  Bxd4 {[%clk 0:01:54]} 17. Bb5 {[%clk 0:01:55]}  Qh4 {[%clk 0:01:36]} 18. Bxe8 {[%clk 0:01:31]}  Rxe8 {[%clk 0:01:30]} 19. Be3 {[%clk 0:00:46]}  Nxe3 {[%clk 0:01:19]} 20. fxe3 {[%clk 0:00:47]}  Be5 {[%clk 0:01:05]} 21. h3 {[%clk 0:00:37]}  Qg3 {[%clk 0:00:57]} 22. e4 {[%clk 0:00:34]} 1/2-1/2


[Site "https://www.chess.com"]

[Event "Titled Tuesday Blitz December 20 Late 2022"]
[White "Vega Gutierrez, Sabrina"]
[Black "Bilan, Danila"]
[WhiteFideId "2219026"]
[BlackFideId "24161918"]
[WhiteElo "2261"]
[BlackElo "2182"]
[Result "1-0"]
[Round "09"]
[TimeControl "180+1"]
[Date "2022.12.21"]
[WhiteClock "0:00:47"]
[BlackClock "0:00:09"]

1. e4 {[%clk 0:03:00]}  c6 {[%clk 0:02:59]} 2. d4 {[%clk 0:03:00]}  d5 {[%clk 0:03:00]} 3. e5 {[%clk 0:02:59]}  c5 {[%clk 0:03:00]} 4. dxc5 {[%clk 0:02:59]}  e6 {[%clk 0:02:59]} 5. a3 {[%clk 0:03:00]}  Bxc5 {[%clk 0:02:59]} 6. b4 {[%clk 0:03:00]}  Bb6 {[%clk 0:02:58]} 7. Nf3 {[%clk 0:03:01]}  a5 {[%clk 0:02:57]} 8. b5 {[%clk 0:03:00]}  Nd7 {[%clk 0:02:53]} 9. Bd3 {[%clk 0:03:00]}  Nc5 {[%clk 0:02:53]} 10. O-O {[%clk 0:03:00]}  Nxd3 {[%clk 0:02:53]} 11. Qxd3 {[%clk 0:02:59]}  Ne7 {[%clk 0:02:45]} 12. c4 {[%clk 0:02:53]}  dxc4 {[%clk 0:02:41]} 13. Qxc4 {[%clk 0:02:46]}  Qd5 {[%clk 0:02:39]} 14. Nbd2 {[%clk 0:02:41]}  Bd7 {[%clk 0:02:24]} 15. a4 {[%clk 0:02:35]}  Rc8 {[%clk 0:02:14]} 16. Qg4 {[%clk 0:02:28]}  Nf5 {[%clk 0:01:59]} 17. Ba3 {[%clk 0:02:22]}  Bc5 {[%clk 0:01:52]} 18. Bxc5 {[%clk 0:02:18]}  Qxc5 {[%clk 0:01:37]} 19. Ne4 {[%clk 0:02:16]}  Qe7 {[%clk 0:01:24]} 20. Rfd1 {[%clk 0:01:50]}  Rd8 {[%clk 0:01:02]} 21. Nd6+ {[%clk 0:01:38]}  Nxd6 {[%clk 0:00:50]} 22. Qxg7 {[%clk 0:01:37]}  Qf8 {[%clk 0:00:44]} 23. Qxf8+ {[%clk 0:01:36]}  Kxf8 {[%clk 0:00:43]} 24. Rxd6 {[%clk 0:01:37]}  Ke7 {[%clk 0:00:37]} 25. Rad1 {[%clk 0:01:05]}  Bc8 {[%clk 0:00:36]} 26. Rxd8 {[%clk 0:00:57]}  Rxd8 {[%clk 0:00:37]} 27. Rxd8 {[%clk 0:00:57]}  Kxd8 {[%clk 0:00:38]} 28. Ng5 {[%clk 0:00:57]}  Ke7 {[%clk 0:00:36]} 29. Nxh7 {[%clk 0:00:57]}  b6 {[%clk 0:00:30]} 30. Nf6 {[%clk 0:00:56]}  Bb7 {[%clk 0:00:26]} 31. h4 {[%clk 0:00:56]}  Bd5 {[%clk 0:00:17]} 32. Nxd5+ {[%clk 0:00:55]}  exd5 {[%clk 0:00:18]} 33. f4 {[%clk 0:00:54]}  Ke6 {[%clk 0:00:17]} 34. g4 {[%clk 0:00:55]}  d4 {[%clk 0:00:16]} 35. Kf2 {[%clk 0:00:55]}  Kd5 {[%clk 0:00:17]} 36. h5 {[%clk 0:00:53]}  Kc4 {[%clk 0:00:11]} 37. Ke2 {[%clk 0:00:50]}  Kc3 {[%clk 0:00:10]} 38. Kd1 {[%clk 0:00:50]}  Kb3 {[%clk 0:00:06]} 39. h6 {[%clk 0:00:50]}  Kxa4 {[%clk 0:00:07]} 40. h7 {[%clk 0:00:50]}  Kxb5 {[%clk 0:00:07]} 41. h8=Q {[%clk 0:00:50]}  a4 {[%clk 0:00:08]} 42. Qe8+ {[%clk 0:00:48]}  Kc4 {[%clk 0:00:09]} 43. Qxa4+ {[%clk 0:00:47]} 1-0


[Site "https://www.chess.com"]